Cogmind - Beta 17.1 @@@ ROGUE MODE // 2026.09.06 @ 21:15:37 Player: MolePlayingNice Result: Destroyed by KC-ZAH(R) with Subdweller Laser Performance ------------- Evolutions (0) 0 Regions Visited (2) 400 Robots Destroyed (20) 100 Value Destroyed (613) 613 Prototype IDs (1) 20 Alien Tech Used (0) 0 Bonus (5410) 5410 TOTAL SCORE: 6543 Bonus ------- Prayed to X0-1V1 5000 Major X0-1V1 Interference 450 Friendly Fire -40 Cogmind --------- Core Integrity 0/200 Matter 300/300 Energy 246/250 System Corruption 25% Temperature Cool (8) Movement Walking (120) Location -10/Subcaves Parts ------- > --- POWER (1) -------- Ion Engine > --- PROPULSION (2) --- Aluminum Leg Aluminum Leg > --- UTILITY (2) ------ Small Storage Unit Subdweller Optics (fused) > --- WEAPON (2) ------- Subdweller Laser Beam Cannon > --- INVENTORY (8) ---- Subdweller Power Source Makeshift Leg Heat Sink Improved Heat Sink X0-1V1's Piety Tracker Beam Rifle Subdweller Machine Gun Multitool Peak State ------------ > --- POWER ------------ Ion Engine > --- PROPULSION ------- Aluminum Leg Makeshift Leg > --- UTILITY ---------- Small Storage Unit X0-1V1's Piety Tracker > --- WEAPON ----------- Particle Gun Subdweller Laser Beam Cannon > --- INVENTORY -------- Ion Engine Aluminum Leg Aluminum Leg Heat Sink Improved Heat Sink Beam Rifle Subdweller Machine Gun Multitool [Rating: 26] Favorites ----------- Power Ion Engine Engine Ion Engine Power Core Light Nuclear Core Propulsion Aluminum Leg Leg Aluminum Leg Utility Small Storage Unit Device X0-1V1's Piety Tracker Storage Small Storage Unit Processor Signal Interpreter Weapon Beam Cannon Energy Gun Subdweller Laser Energy Cannon Beam Cannon Ballistic Gun Light Assault Rifle Build | -11 -10 -10 ------- Run | Yrd Mat Sub Slots Evolved . | . . . Power . | . . . Propulsion . | . . . Utility . | . . . Weapon . | . . . Parts Attached 21 | . 8 13 Power 4 | . 2 2 Engine 3 | . 1 2 Core 1 | . 1 . Reactor . | . . . Propulsion 3 | . . 3 Treads . | . . . Leg 3 | . . 3 Wheel . | . . . Hover . | . . . Flight . | . . . Utility 5 | . 4 1 Device 4 | . 3 1 Storage . | . . . Processor 1 | . 1 . Hackware . | . . . Protection . | . . . Artifact . | . . . Weapon 9 | . 2 7 Energy Gun 6 | . . 6 Energy Cannon 2 | . 2 . Ballistic Gun 1 | . . 1 Ballistic Cannon . | . . . Launcher . | . . . Special Weapon . | . . . Impact Weapon . | . . . Slashing Weapon . | . . . Piercing Weapon . | . . . Special Melee Weapon . | . . . Unidentified Prototypes 1 | . 1 . Parts Lost 6 | . 1 5 Power 1 | . 1 . Propulsion 2 | . . 2 Utility 1 | . . 1 Weapon 2 | . . 2 Highest Loss Streak 5 | . 1 5 To Critical Strikes . | . . . Average Backups 7 | . 6 7 Power 1 | . 1 1 Propulsion 1 | . 1 1 Utility 1 | . 1 2 Weapon 2 | . 3 1 Tool/Special . | . . . Unused Backups 21 | . 12 9 Power . | . . . Propulsion 9 | . 6 3 Utility 4 | . 2 2 Weapon 7 | . 4 3 Tool/Special 1 | . . 1 Average Slot Usage (%) 98 | . 97 98 Engine 12 | . 10 12 Leg 26 | . 28 25 Device 11 | . 10 12 Storage 13 | . 14 12 Energy Gun 13 | . . 19 Energy Cannon 10 | . 12 9 Ballistic Gun 7 | . 15 3 Peak Build Rating 26 | . 20 26 Average Rating 16 | . 8 20 On Entrance 10 | 6 6 20 Avg Prop Armor Cover (%) . | . . . Naked Turns . | . . . Heaviest Build 21 | 13 17 21 Greatest Support 30 | 20 20 30 Greatest Overweight (x) 1 | . . 1 Average Overweight (x) . | . . . Largest Inventory Capacity 8 | . 8 8 Average Capacity 8 | . 8 8 Most Carried 8 | . 8 8 Average Carried 7 | . 6 7 Final Capacity 8 | 8 8 8 Final Carried 8 | 6 8 8 Class Distribution -------------------- 43% | Mutant 35% | Gunner 20% | Scavenger-Mutant Dominant Class ---------------- Mutant | -10/Materials Gunner | -10/Subcaves Resources | -11 -10 -10 ----------- Run | Yrd Mat Sub Matter Collected 657 | 200 157 300 Remotely . | . . . Salvage Created 781 | . 438 343 Parts 41 | . 14 27 Haulers Intercepted 1 | . 1 . Recyclers Shooed . | . . . Parts Field Recycled . | . . . Retrieved Matter . | . . . Parts Self-Destructed 19 | . . 19 Prevented . | . . . Parts Restored . | . . . Kills | -11 -10 -10 ------- Run | Yrd Mat Sub Combat Hostiles Destroyed 17 | . 6 11 Guns 9 | . 2 7 Cannons 8 | . 4 4 Classes Destroyed 5 | . 3 2 Hauler 1 | . 1 . Recycler 2 | . 2 . Swarmer 2 | . . 2 Grunt 10 | . 6 4 Subdweller 5 | . . 5 Best Kill Streak 3 | . 2 3 Combat Bots Only 3 | . 2 3 Max Kills in Single Turn 1 | . 1 1 Gunslinging . | . . . Exploded . | . . . Melee . | . . . Uniques/NPCs Destroyed . | . . . Combat | -11 -10 -10 -------- Run | Yrd Mat Sub Hostile Shots Fired 87 | . 28 59 Missed 17 | . 7 10 Hits 70 | . 21 49 Projectile 70 | . 21 49 Critical Strikes 2 | . . 2 Damage Taken 992 | . 253 739 Core 239 | . 30 209 Absorbed by Shields . | . . . Core Remaining (%) 100 | 100 . . Volleys Fired 62 | . 35 27 Largest 3 | . 2 3 Hottest 185 | . 120 185 Shots Fired 129 | . 70 59 Gun 88 | . 50 38 Cannon 41 | . 20 21 Launcher . | . . . Special . | . . . Kinetic 55 | . 50 5 Thermal 74 | . 20 54 Explosive . | . . . Electromagnetic . | . . . Robot Hit Streak 9 | . 9 9 Robot Miss Streak 2 | . 2 2 Penetration Max . | . . . Secondary Targets 1 | . . 1 Max Gunslinging Chain 1 | . . 1 Shots Hit Robots 84 | . 49 35 Core Hits 36 | . 18 18 Critical Kills . | . . . Critical Parts Destroyed . | . . . Critical Strikes 2 | . . 2 Destroy 1 | . . 1 Phase 1 | . . 1 Melee Attacks . | . . . Impact . | . . . Slashing . | . . . Piercing . | . . . Sneak Attacks . | . . . Combat Hostiles . | . . . Follow-up Attacks . | . . . Damage Inflicted 6294 | . 600 5694 Guns 871 | . 384 487 Cannons 5419 | . 212 5207 Explosions . | . . . Melee . | . . . Ramming 4 | . 4 . Kinetic 437 | . 384 53 Thermal 5853 | . 212 5641 Explosive . | . . . Electromagnetic . | . . . Impact . | . . . Slashing . | . . . Piercing . | . . . Highest Corruption 25 | . . 25 Average Corruption 12 | . . 12 Corruption Purged . | . . . Corruption Blocked . | . . . Effects 16 | . . 16 Message Errors 3 | . . 3 Matter Fused 2 | . . 2 Heat Flow Errors 2 | . . 2 Energy Discharges 3 | . . 3 Parts Fused 1 | . . 1 Data Loss (minor) 3 | . . 3 Data Loss (major) 1 | . . 1 Alerts 1 | . . 1 Overload Shots . | . . . Overflow Damage . | . . . Projectiles . | . . . Explosions . | . . . Melee . | . . . Knockbacks . | . . . Impact . | . . . Kinetic . | . . . Secondary . | . . . Self-Inflicted Damage . | . . . Shots . | . . . Rammed . | . . . Targets Rammed 2 | . 2 . Kicked 2 | . 2 . Crushed . | . . . Highest Temperature 191 | . 90 191 Average Temperature 45 | . 32 52 Received Heat Transfer 423 | . 144 279 Siege Activations . | . . . Martial Activations . | . . . Shielding Activations . | . . . Robots Disrupted . | . . . Combat Hostiles . | . . . Robots Corrupted . | . . . Combat Hostiles . | . . . Parts Fried . | . . . Impact Corruptions . | . . . Robots Melted . | . . . Combat Hostiles . | . . . Parts Melted 5 | . 3 2 Heat Transferred 1547 | . 444 1103 Parts Sabotaged . | . . . Parts Stolen . | . . . Parts Stripped . | . . . Power Chain Reactions . | . . . Alert | -11 -10 -10 ------- Run | Yrd Mat Sub Maximum Alert Level . | . . . Low Security (%) 100 | . 100 . Level 1 . | . . . Level 2 . | . . . Level 3 . | . . . Level 4 . | . . . Level 5 . | . . . High Security . | . . . Max Security . | . . . Peak Influence 81 | . 81 . Initial . | . . . Average 20 | . 20 . Influence Increases 308 | . 168 140 Destroy 0b10 Robot/C 240 | . 120 120 Destroy 0b10 Robot/NC 15 | . 15 . Destroy Leader 52 | . 32 20 Destroy Structure 1 | . 1 . Influence Decreases 308 | . 127 181 Entered New Map 21 | . . 21 Time Decay 257 | . 117 140 Lost Part 30 | . 10 20 Squads Dispatched 1 | . 1 . Investigation 1 | . 1 . Extermination . | . . . Reinforcement . | . . . Assault . | . . . Garrison . | . . . Intercept . | . . . Searches Triggered . | . . . Construction Impeded . | . . . Haulers Reinforced . | . . . Active Scanning Responses . | . . . Cargo Convoy Interrupts . | . . . Stealth | -11 -10 -10 --------- Run | Yrd Mat Sub Distress Signals . | . . . Communications Jammed . | . . . Distress Signals . | . . . Times Spotted 29 | . 10 19 Peak Tracking Total 7 | . 4 7 Tactical Retreats . | . . . Traps | -11 -10 -10 ------- Run | Yrd Mat Sub Traps Triggered 1 | . 1 . Indirectly . | . . . Trap Hack Attempts . | . . . Triggered . | . . . Disarmed . | . . . Reprogrammed . | . . . Reused . | . . . Traps Extracted . | . . . Installed . | . . . Triggered . | . . . Machines | -11 -10 -10 ---------- Run | Yrd Mat Sub Machines Disabled . | . . . Max in Single Turn . | . . . Machines Repaired . | . . . Machines Dismantled . | . . . Machines Sabotaged . | . . . Overloaded Fab Kills . | . . . Hacking | -11 -10 -10 --------- Run | Yrd Mat Sub Machines Accessed . | . . . Terminals . | . . . Fabricators . | . . . Repair Stations . | . . . Recycling Units . | . . . Scanalyzers . | . . . Garrison Access . | . . . Total Hacks . | . . . Successful . | . . . Failed . | . . . Catastrophic . | . . . Database Lockouts . | . . . Manual 1 | . 1 . Terminals . | . . . Fabricators . | . . . Repair Stations . | . . . Recycling Units . | . . . Scanalyzers . | . . . Garrison Access . | . . . Terminal Hacks . | . . . Fabricator Hacks . | . . . Repair Station Hacks . | . . . Recycling Unit Hacks . | . . . Scanalyzer . | . . . Garrison Access Hacks . | . . . Unauthorized Hacks . | . . . Terminals . | . . . Fabricators . | . . . Repair Stations . | . . . Recycling Units . | . . . Scanalyzers . | . . . Garrison Access . | . . . Data Cores Recovered . | . . . Used . | . . . Hacking Detections . | . . . Full Trace Events . | . . . Feedback Events . | . . . Feedback Blocked . | . . . Robot Schematics Acquired . | . . . Robots Built . | . . . Authchips . | . . . Time . | . . . Total Robot Build Rating . | . . . Part Schematics Acquired . | . . . Parts Built . | . . . Authchips . | . . . Time . | . . . Total Part Build Rating . | . . . Part Studies Acquired . | . . . Parts Repaired . | . . . Time . | . . . Parts Recycled . | . . . Recycled Matter . | . . . Retrieved Matter . | . . . Retrieved Components . | . . . Parts Scanalyzed . | . . . Part Schematics Acquired . | . . . Parts Damaged . | . . . Bothacking | -11 -10 -10 ------------ Run | Yrd Mat Sub Used RIF Installer . | . . . Robots Hacked . | . . . Non-combat . | . . . Combat . | . . . Robot Hacks Applied . | . . . Relay Couplers Released . | . . . Fabnet Peak Effective % . | . . . Robots Rewired . | . . . Allies Hacked . | . . . Hacks Repelled . | . . . Allies | -11 -10 -10 -------- Run | Yrd Mat Sub Total Allies . | . . . Largest Group . | . . . Highest-Rated Group . | . . . Highest-Rated Ally . | . . . Total Orders . | . . . Ally Attacks . | . . . Total Damage . | . . . Kills . | . . . Allies Corrupted . | . . . Allies Melted . | . . . X0-1V1 Amusement Gains 40 | . 10 30 Average Entertainment 12 | . 10 12 Good Acts 7 | . . 7 Bad Acts 8 | . . 8 Intel | -11 -10 -10 ------- Run | Yrd Mat Sub Active Infowar (turns) 212 | . . 212 Optics 212 | . . 212 Robot Analysis Total . | . . . Derelict Logs Recovered 2 | . . 2 Drone Launches . | . . . Drone Recoveries . | . . . Exploration | -11 -10 -10 ------------- Run | Yrd Mat Sub Turns Passed 1508 | . 491 1017 Spaces Moved 765 | 1 230 534 Core . | . . . Treads . | . . . Legs 765 | 1 230 534 Wheels . | . . . Hover . | . . . Flight . | . . . Fastest Speed 120 | 120 120 120 Average Speed 142 | 120 120 152 Slowest Speed 190 | 120 120 190 Overloaded Moves . | . . . Propulsion Burnouts . | . . . Robots Hopped . | . . . Potential Cave-ins . | . . . Cave-ins Triggered . | . . . Exploration Rate (%) 24 | 2 38 32 Regions Visited 2 Branch Regions 1 Pre-discovered Areas . | . . . Known Exits Taken . | . . . Unknown Exits Taken 2 | 1 1 . Scrap Searched 3 | . . 3 Spaces Dug . | . . . Terrain Destroyed 53 | . . 53 Melee . | . . . Projectile 53 | . . 53 AOE . | . . . Terrain Rammed . | . . . Walls Destroyed . | . . . Machines Disabled . | . . . Actions | -11 -10 -10 --------- Run | Yrd Mat Sub Total 1067 | . 383 684 Wait 182 | . 87 95 Move 763 | . 229 534 Hop . | . . . Pick Up 14 | . 9 5 Fast Attach 13 | . 7 6 Attach 4 | . . 4 Detach 2 | . 1 1 Swap 5 | . 1 4 Drop 20 | . 12 8 Fire 62 | . 35 27 Melee . | . . . Ram . | . . . Kick 2 | . 2 . Crush . | . . . Escape Stasis . | . . . Rewire . | . . . Trap . | . . . Miscellaneous . | . . . Route ------- -11/Scrapyard -10/Materials (discovered 2 exits: [*Mat] / [*Sub]) -10/Subcaves (discovered 3 exits: [*Mat x2] / Rec) History --------- Turn | Location | Event 1 | -11/Scrapyard | Discovered new exit (range 0) 1 | -11/Scrapyard | Entered Materials 303 | -10/Materials | Build established: Mutant 365 | -10/Materials | Discovered new exit (range 4) 401 | -10/Materials | Discovered new exit (range 5) 460 | -10/Materials | Prayed at D.C.S.S. Altar Unit 492 | -10/Materials | Entered Subcaves 561 | -10/Subcaves | Melee accuracy permanently improved by X0-1V1 (+5%; -50 max core) 611 | -10/Subcaves | Discovered new exit (range 11) 636 | -10/Subcaves | Weapon slot count temporarily expanded by X0-1V1 (+1) 710 | -10/Subcaves | X0-1V1 activates XOMVISION 873 | -10/Subcaves | Discovered new exit (range 5) 923 | -10/Subcaves | Build established: Gunner 1000 | -10/Subcaves | Identified exit to Recycling 1000 | -10/Subcaves | X0-1V1 revealed exit location to -9/Recycling 1034 | -10/Subcaves | Learned Materials security intel 1159 | -10/Subcaves | Weapon slot count reverted to normal (-1) 1175 | -10/Subcaves | Shifting Twisted Machinery released Scrap Shield 1239 | -10/Subcaves | Core integrity fell below 50% 1240 | -10/Subcaves | X0-1V1 sent hostile G-34 Mercenary (x5) 1258 | -10/Subcaves | Core integrity fell below 20% 1296 | -10/Subcaves | Lost 5 parts (2n1u2w) 1404 | -10/Subcaves | System corruption reached 10% 1509 | -10/Subcaves | Destroyed by KC-ZAH(R) with Subdweller Laser Last Messages --------------- 01402_ ZFJY0